fUST/lending_fUST_20250301
["ID","MTS","AMOUNT","RATE_DAILY","PERIOD"]
[354870436,1740763536839,-500.0,0.00050136,120]
[354870437,1740763536871,-500.0,0.00050136,120]
[354870438,1740763536902,-500.0,0.00050136,120]
[354870439,1740763536933,-500.0,0.00050136,120]
[354870440,1740763536963,-2506.28,0.00050136,120]
[354870441,1740763536997,-500.0,0.00050136,120]
[354870442,1740763537031,-1264.19,0.00050136,120]
[354870443,1740763537063,-414.7859466,0.00050136,120]
[354870444,1740763537095,-500.0,0.00050136,120]
[354870445,1740763537126,-500.0,0.00050136,120]
[354870446,1740763537157,-500.0,0.00050136,120]
[354870447,1740763537188,-500.0,0.00050136,120]
[354870448,1740763537219,-500.0,0.00050136,120]
[354870449,1740763537253,-500.0,0.00050136,120]
[354870450,1740763537285,-1629.01,0.00050136,120]
[354870451,1740763537316,-500.0,0.00050136,120]
[354870452,1740763537346,-500.0,0.00050136,120]
[354870453,1740763537379,-505.6071462,0.00050136,120]
[354870454,1740763537410,-574.5,0.00050136,120]
[354870455,1740763537443,-500.0,0.00050136,120]
[354870456,1740763537476,-500.0,0.00050136,120]
[354870457,1740763537508,-500.0,0.00050136,120]
[354870458,1740763537540,-500.0,0.00050136,120]
[354870459,1740763537571,-500.0,0.00050136,120]
[354870460,1740763537602,-500.0,0.00050136,120]
[354870461,1740763537635,-500.0,0.00050136,120]
[354870462,1740763537666,-561.25555975,0.00050136,120]
[354870463,1740763537697,-500.0,0.00050136,120]
[354870464,1740763537729,-666.25,0.00050136,120]
[354870465,1740763537760,-403.30702622,0.00050136,120]
[354870466,1740763537791,-500.0,0.00050136,120]
[354870467,1740763537829,-500.0,0.00050136,120]
[354870468,1740763537866,-499.187593,0.00050136,120]
[354870469,1740763537902,-703.82,0.00050136,120]
[354870470,1740763537936,-500.0,0.00050136,120]
[354870471,1740763537969,-500.0,0.00050136,120]
[354870472,1740763538002,-500.0,0.00050136,120]
[354870473,1740763538034,-500.0,0.00050136,120]
[354870474,1740763538067,-500.0,0.00050136,120]
[354870475,1740763538100,-500.0,0.00050136,120]
[354870476,1740763538136,-1569.49,0.00050136,120]
[354870477,1740763538169,-500.0,0.00050136,120]
[354870478,1740763538201,-500.0,0.00050136,120]
[354870479,1740763538380,-787.92,0.00050136,120]
[354870480,1740763538416,-500.0,0.00050136,120]
[354870481,1740763538451,-1233.89,0.00050136,120]
[354870482,1740763538484,-500.0,0.00050136,120]
[354870483,1740763538517,-500.0,0.00050136,120]
[354870484,1740763538552,-500.0,0.00050136,120]
[354870485,1740763538587,-500.0,0.00050136,120]
[354870486,1740763538624,-500.0,0.00050136,120]
[354870487,1740763538658,-504.46617114,0.00050136,120]
[354870488,1740763538692,-508.79484593,0.00050136,120]
[354870489,1740763538724,-500.0,0.00050136,120]
[354870490,1740763538756,-518.06,0.00050136,120]
[354870491,1740763538788,-500.0,0.00050136,120]
[354870492,1740763538820,-500.0,0.00050136,120]
[354870493,1740763538850,-504.58863724,0.00050136,120]
[354870494,1740763538883,-500.0,0.00050136,120]
[354870495,1740763538913,-500.0,0.00050136,120]
[354870496,1740763538943,-513.30709195,0.00050136,120]
[354870497,1740763538973,-1344.52,0.00050136,120]
[354870498,1740763539002,-1065.91,0.00050136,120]
[354870499,1740763539035,-2091.64,0.00050136,120]
[354870500,1740763539065,-500.0,0.00050136,120]
[354870501,1740763539096,-500.0,0.00050136,120]
[354870502,1740763539129,-500.0,0.00050136,120]
[354870503,1740763539159,-500.0,0.00050136,120]
[354870504,1740763539190,-500.0,0.00050136,120]
[354870505,1740763539221,-590.90543797,0.00050136,120]
[354870506,1740763539252,-1671.97,0.00050136,120]
[354870507,1740763539286,-242.70098221,0.00050136,120]
[354870508,1740763539317,-514.22839399,0.00050136,120]
[354870509,1740763539349,-500.0,0.00050136,120]
[354870510,1740763539382,-500.0,0.00050136,120]
[354870511,1740763539413,-500.0,0.00050136,120]
[354870512,1740763539446,-841.24,0.00050136,120]
[354870513,1740763539478,-500.0,0.00050136,120]
[354870514,1740763539508,-500.0,0.00050136,120]
[354870515,1740763539544,-500.0,0.00050136,120]
[354870516,1740763539574,-2205.86,0.00050136,120]
[354870517,1740763539604,-500.0,0.00050136,120]
[354870518,1740763539637,-500.0,0.00050136,120]
[354870519,1740763539667,-926.05,0.00050136,120]
[354870520,1740763539705,-1146.34,0.00050136,120]
[354870521,1740763539735,-500.0,0.00050136,120]
[354870522,1740763539765,-2488.23,0.00050136,120]
[354870523,1740763539794,-500.0,0.00050136,120]
[354870524,1740763539823,-500.0,0.00050136,120]
[354870525,1740763539857,-500.04126669,0.00050136,120]
[354870526,1740763539901,-500.0,0.00050136,120]
[354870527,1740763539940,-1011.27,0.00050136,120]
[354870528,1740763539979,-500.0,0.00050136,120]
[354870529,1740763540018,-500.0,0.00050136,120]
[354870530,1740763540058,-500.0,0.00050136,120]
[354870531,1740763540095,-500.0,0.00050136,120]
[354870532,1740763540135,-593.09,0.00050136,120]
[354870533,1740763540170,-500.0,0.00050136,120]
[354870534,1740763540208,-500.0,0.00050136,120]
[354870535,1740763540249,-500.0,0.00050136,120]
[354870536,1740763540290,-500.0,0.00050136,120]
[354870537,1740763540324,-506.35058489,0.00050136,120]
[354870538,1740763540366,-500.0,0.00050136,120]
[354870539,1740763540403,-500.0,0.00050136,120]
[354870540,1740763540442,-500.0,0.00050136,120]
[354870541,1740763540476,-826.25,0.00050136,120]
[354870542,1740763540515,-917.02,0.00050136,120]
[354870543,1740763540551,-994.45,0.00050136,120]
[354870544,1740763540589,-500.0,0.00050136,120]
[354870545,1740763540634,-500.0,0.00050136,120]
[354870546,1740763540672,-500.0,0.00050136,120]
[354870547,1740763540711,-500.0,0.00050136,120]
[354870548,1740763540749,-502.60845114,0.00050136,120]
[354870549,1740763540788,-1532.13,0.00050136,120]
[354870550,1740763540826,-506.64755562,0.00050136,120]
[354870551,1740763540868,-500.0,0.00050136,120]
[354870552,1740763540910,-500.0,0.00050136,120]
[354870553,1740763540951,-1129.68,0.00050136,120]
[354870554,1740763540991,-500.0,0.00050136,120]
[354870555,1740763541029,-2323.23,0.00050136,120]
[354870556,1740763541066,-500.0,0.00050136,120]
[354870557,1740763541103,-517.40062326,0.00050136,120]
[354870558,1740763541144,-500.0,0.00050136,120]
[354870559,1740763541185,-651.05,0.00050136,120]
[354870560,1740763541222,-500.0,0.00050136,120]
[354870561,1740763541258,-500.0,0.00050136,120]
[354870562,1740763541299,-500.0,0.00050136,120]
[354870563,1740763541337,-500.0,0.00050136,120]
[354870564,1740763541376,-500.0,0.00050136,120]
[354870565,1740763541413,-500.0,0.00050136,120]
[354870566,1740763541448,-500.0,0.00050136,120]
[354870567,1740763541484,-500.0,0.00050136,120]
[354870568,1740763541520,-500.0,0.00050136,120]
[354870569,1740763541557,-500.0,0.00050136,120]
[354870570,1740763541594,-511.83,0.00050136,120]
[354870571,1740763541632,-774.0,0.00050136,120]
[354870572,1740763541865,-500.0,0.00050136,120]
[354870573,1740763541898,-500.0,0.00050136,120]
[354870574,1740763541929,-500.0,0.00050136,120]
[354870575,1740763541959,-500.0,0.00050136,120]
[354870576,1740763541990,-500.0,0.00050136,120]
[354870577,1740763542020,-500.0,0.00050136,120]
[354870578,1740763542050,-500.0,0.00050136,120]
[354870579,1740763542080,-500.0,0.00050136,120]
[354870580,1740763542108,-500.0,0.00050136,120]
[354870581,1740763542137,-500.0,0.00050136,120]
[354870582,1740763542166,-500.0,0.00050136,120]
[354870583,1740763542195,-500.0,0.00050136,120]
[354870584,1740763542224,-500.0,0.00050136,120]
[354870585,1740763542252,-500.0,0.00050136,120]
[354870586,1740763542285,-500.0,0.00050136,120]
[354870587,1740763542318,-500.0,0.00050136,120]
[354870588,1740763542348,-1187.05,0.00050136,120]
[354870589,1740763542378,-507.71483851,0.00050136,120]
[354870590,1740763542407,-500.0,0.00050136,120]
[354870591,1740763542436,-506.77710133,0.00050136,120]
[354870592,1740763542466,-500.0,0.00050136,120]
[354870593,1740763542495,-990.19,0.00050136,120]
[354870594,1740763542524,-500.0,0.00050136,120]
[354870595,1740763542554,-2063.2,0.00050136,120]
[354870596,1740763542584,-500.0,0.00050136,120]
[354870597,1740763542615,-500.0,0.00050136,120]
[354870598,1740763542645,-588.96,0.00050136,120]
[354870599,1740763542675,-502.98,0.00050136,120]
[354870600,1740763542705,-500.0,0.00050136,120]
[354870601,1740763542735,-3034.08,0.00050136,120]
[354870602,1740763542764,-500.0,0.00050136,120]
[354870603,1740763542799,-500.0,0.00050136,120]
[354870604,1740763542831,-500.0,0.00050136,120]
[354870605,1740763542865,-510.81242507,0.00050136,120]
[354870606,1740763542894,-500.0,0.00050136,120]
[354870607,1740763542922,-500.0,0.00050136,120]
[354870608,1740763542953,-500.0,0.00050136,120]
[354870609,1740763542981,-500.0,0.00050136,120]
[354870610,1740763543010,-500.0,0.00050136,120]
[354870611,1740763543038,-668.35,0.00050136,120]
[354870612,1740763543067,-500.0,0.00050136,120]
[354870613,1740763543096,-500.0,0.00050136,120]
[354870614,1740763543125,-503.46,0.00050136,120]
[354870615,1740763543155,-500.0,0.00050136,120]
[354870616,1740763543184,-500.0,0.00050136,120]
[354870617,1740763543213,-500.0,0.00050136,120]
[354870618,1740763543242,-552.14,0.00050136,120]
[354870619,1740763543272,-524.63,0.00050136,120]
[354870620,1740763543303,-500.0,0.00050136,120]
[354870621,1740763543334,-500.0,0.00050136,120]
[354870622,1740763543366,-500.0,0.00050136,120]
[354870623,1740763543396,-500.0,0.00050136,120]
[354870624,1740763543433,-500.0,0.00050136,120]
[354870625,1740763543467,-500.0,0.00050136,120]
[354870626,1740763543499,-500.0,0.00050136,120]
[354870627,1740763543532,-500.0,0.00050136,120]
[354870628,1740763543563,-1000.0,0.00050136,60]
[354870629,1740763543593,-500.0,0.00050136,120]
[354870630,1740763543627,-500.0,0.00050136,120]
[354870631,1740763543659,-500.0,0.00050136,120]
[354870632,1740763543690,-500.0,0.00050136,120]
[354870633,1740763543721,-500.0,0.00050136,120]
[354870634,1740763543751,-2302.67,0.00050136,120]
[354870635,1740763543781,-1124.22,0.00050136,120]
[354870636,1740763543811,-500.0,0.00050136,120]
[354870637,1740763543840,-508.19855964,0.00050136,120]
[354870638,1740763543870,-500.0,0.00050136,120]
[354870639,1740763543899,-754.61,0.00050136,120]
[354870640,1740763543930,-500.0,0.00050136,120]
[354870641,1740763543959,-500.0,0.00050136,120]
[354870642,1740763543989,-500.0,0.00050136,120]
[354870643,1740763544019,-500.0,0.00050136,120]
[354870644,1740763544049,-500.0,0.00050136,120]
[354870645,1740763544079,-500.0,0.00050136,120]
[354870646,1740763544109,-500.0,0.00050136,120]
[354870647,1740763544140,-500.0,0.00050136,120]
[354870648,1740763544169,-724.08,0.00050136,120]
[354870649,1740763544199,-243.00538742,0.00050136,120]
[354870650,1740763544228,-500.0,0.00050136,120]
[354870651,1740763544257,-500.0,0.00050136,120]
[354870652,1740763544287,-500.0,0.00050136,120]
[354870653,1740763544318,-500.0,0.00050136,120]
[354870654,1740763544347,-500.0,0.00050136,120]
[354870655,1740763544379,-500.0,0.00050136,120]
[354870656,1740763544409,-500.0,0.00050136,120]
[354870657,1740763544439,-500.0,0.00050136,120]
[354870658,1740763544471,-500.0,0.00050136,120]
[354870659,1740763544503,-500.0,0.00050136,120]
[354870660,1740763544536,-500.0,0.00050136,120]
[354870661,1740763544567,-500.0,0.00050136,120]
[354870662,1740763544597,-500.0,0.00050136,120]
[354870663,1740763544629,-500.0,0.00050136,120]
[354870664,1740763544811,-500.0,0.00050136,120]
[354870665,1740763544844,-500.0,0.00050136,120]
[354870666,1740763544877,-500.0,0.00050136,120]
[354870667,1740763544908,-500.0,0.00050136,120]
[354870668,1740763544938,-500.0,0.00050136,120]
[354870669,1740763544969,-573.39,0.00050136,120]
[354870670,1740763545000,-500.0,0.00050136,120]
[354870671,1740763545031,-593.09,0.00050136,120]
[354870672,1740763545062,-500.0,0.00050136,120]
[354870673,1740763545094,-500.0,0.00050136,120]
[354870674,1740763545124,-500.0,0.00050136,120]
[354870675,1740763545155,-500.0,0.00050136,120]
[354870676,1740763545186,-500.0,0.00050136,120]
[354870677,1740763545219,-596.45113121,0.00050136,120]
[354870678,1740763545252,-500.0,0.00050136,120]
[354870679,1740763545285,-500.0,0.00050136,120]
[354870680,1740763545319,-1697.01,0.00050136,120]
[354870681,1740763545351,-500.0,0.00050136,120]
[354870682,1740763545385,-500.0,0.00050136,120]
[354870683,1740763545416,-500.0,0.00050136,120]
[354870684,1740763545449,-780.75,0.00050136,120]
[354870685,1740763545479,-500.0,0.00050136,120]
[354870686,1740763545509,-1221.28,0.00050136,120]
[354870687,1740763545540,-500.0,0.00050136,120]
[354870688,1740763545575,-528.7,0.00050136,120]
[354870689,1740763545607,-500.0,0.00050136,120]
[354870690,1740763545640,-500.0,0.00050136,120]
[354870691,1740763545671,-713.46,0.00050136,120]
[354870692,1740763545704,-3718.03,0.00050136,120]
[354870693,1740763545736,-500.0,0.00050136,120]
[354870694,1740763545767,-1353.29,0.00050136,120]
[354870695,1740763545800,-500.0,0.00050136,120]
[354870696,1740763545831,-2543.18,0.00050136,120]
[354870697,1740763545864,-879.65,0.00050136,120]
[354870698,1740763545895,-1268.46,0.00050136,120]
[354870699,1740763545927,-500.0,0.00050136,120]
[354870700,1740763545960,-500.0,0.00050136,120]
[354870701,1740763545993,-500.0,0.00050136,120]
[354870702,1740763546026,-500.0,0.00050136,120]
[354870703,1740763546059,-840.06,0.00050136,120]
[354870704,1740763546092,-1098.58,0.00050136,120]
[354870705,1740763546123,-508.75172795,0.00050136,120]
[354870706,1740763546154,-500.0,0.00050136,120]
[354870707,1740763546185,-500.0,0.00050136,120]
[354870708,1740763546216,-4478.17,0.00050136,120]
[354870709,1740763546247,-2266.57,0.00050136,120]
[354870710,1740763546281,-1447.4,0.00050136,120]
[354870711,1740763546312,-27400.98,0.00050136,120]
[354870712,1740763546344,-500.0,0.00050136,120]
[354870713,1740763546381,-500.0,0.00050136,120]
[354870714,1740763546414,-500.0,0.00050136,120]
[354870715,1740763546445,-804.14,0.00050136,120]
[354870716,1740763546475,-500.0,0.00050136,120]
[354870717,1740763546506,-931.72,0.00050136,120]
[354870718,1740763546538,-500.0,0.00050136,120]
[354870719,1740763546570,-500.0,0.00050136,120]
[354870720,1740763546601,-500.0,0.00050136,120]
[354870721,1740763546634,-500.0,0.00050136,120]
[354870722,1740763546665,-500.0,0.00050136,120]
[354870723,1740763546696,-500.0,0.00050136,120]
[354870724,1740763546728,-2476.74,0.00050136,120]
[354870725,1740763546759,-500.0,0.00050136,120]
[354870726,1740763546790,-4293.14,0.00050136,120]
[354870727,1740763546820,-500.0,0.00050136,120]
[354870728,1740763546850,-500.0,0.00050136,120]
[354870729,1740763546882,-538.09,0.00050136,120]
[354870730,1740763546912,-500.0,0.00050136,120]
[354870731,1740763546943,-500.0,0.00050136,120]
[354870732,1740763546975,-509.33684072,0.00050136,120]
[354870733,1740763547009,-1007.07,0.00050136,120]
[354870734,1740763547042,-642.06,0.00050136,120]
[354870735,1740763547075,-500.0,0.00050136,120]
[354870736,1740763547110,-500.0,0.00050136,120]
[354870737,1740763547145,-952.89,0.00050136,120]
[354870738,1740763547176,-6217.21,0.00050136,120]
[354870739,1740763547207,-500.0,0.00050136,120]
[354870740,1740763547238,-500.0,0.00050136,120]
[354870741,1740763547270,-500.0,0.00050136,120]
[354870742,1740763547305,-3197.64,0.00050136,120]
[354870743,1740763547339,-500.0,0.00050136,120]
[354870744,1740763547372,-500.0,0.00050136,120]
[354870745,1740763547403,-500.0,0.00050136,120]
[354870746,1740763547434,-1754.32,0.00050136,120]
[354870747,1740763547466,-500.0,0.00050136,120]
[354870748,1740763547498,-500.0,0.00050136,120]
[354870749,1740763547530,-763.79,0.00050136,120]
[354870750,1740763547561,-500.0,0.00050136,120]
[354870751,1740763547595,-5496.43,0.00050136,120]
[354870752,1740763547626,-500.0,0.00050136,120]
[354870753,1740763547818,-934.9,0.00050136,120]
[354870754,1740763547851,-515.86,0.00050136,120]
[354870755,1740763547891,-500.0,0.00050136,120]
[354870756,1740763547926,-2890.58,0.00050136,120]
[354870757,1740763547959,-500.0,0.00050136,120]
[354870758,1740763547993,-500.0,0.00050136,120]
[354870759,1740763548025,-6720.05,0.00050136,120]
[354870760,1740763548062,-1090.96,0.00050136,120]
[354870761,1740763548096,-500.0,0.00050136,120]
[354870762,1740763548133,-500.0,0.00050136,120]
[354870763,1740763548167,-500.0,0.00050136,120]
[354870764,1740763548205,-22918.52,0.00050136,120]
[354870765,1740763548241,-674.83,0.00050136,120]
[354870766,1740763548278,-1959.84,0.00050136,120]
[354870767,1740763548314,-500.0,0.00050136,120]
[354870768,1740763548350,-500.0,0.00050136,120]
[354870769,1740763548389,-5833.00776637,0.00050136,120]
[354870770,1740763551202,-882.26,0.00049315,120]
[354870771,1740763551231,-537.95929252,0.00049315,120]
[354870772,1740763551264,-882.26,0.00049589,120]
[354870773,1740763551299,-500.0,0.00049863,120]
[354870774,1740763551328,-882.26,0.00049863,120]
[354870775,1740763551359,-3192.24223363,0.00050136,120]
[354870776,1740763551390,-500.0,0.00050136,120]
[354870777,1740763551419,-500.0,0.00050136,120]
[354870778,1740763551448,-500.0,0.00050136,120]
[354870779,1740763551480,-690.65,0.00050136,120]
[354870780,1740763551512,-500.0,0.00050136,120]
[354870781,1740763551546,-3286.73,0.00050136,120]
[354870782,1740763551578,-500.0,0.00050136,120]
[354870783,1740763551610,-869.44,0.00050136,120]
[354870784,1740763551646,-500.0,0.00050136,120]
[354870785,1740763551676,-500.0,0.00050136,120]
[354870786,1740763551707,-500.0,0.00050136,120]
[354870787,1740763551735,-2161.42,0.00050136,120]
[354870788,1740763551764,-500.0,0.00050136,120]
[354870789,1740763551793,-1203.18,0.00050136,120]
[354870790,1740763551823,-1743.69,0.00050136,120]
[354870791,1740763551853,-500.0,0.00050136,120]
[354870792,1740763551883,-1904.71,0.00050136,120]
[354870793,1740763551913,-1807.51,0.00050136,120]
[354870794,1740763551942,-500.0,0.00050136,120]
[354870795,1740763551972,-553.69743673,0.00050136,120]
[354870796,1740763552003,-572.8,0.00050136,120]
[354870797,1740763552031,-500.0,0.00050136,120]
[354870798,1740763552060,-500.0,0.00050136,120]
[354870799,1740763552088,-500.0,0.00050136,120]
[354870800,1740763552117,-500.0,0.00050136,120]
[354870801,1740763552146,-1222.38,0.00050136,120]
[354870802,1740763552175,-500.0,0.00050136,120]
[354870803,1740763552203,-500.0,0.00050136,120]
[354870804,1740763552233,-997.58,0.00050136,120]
[354870805,1740763552261,-1635.3,0.00050136,120]
[354870806,1740763552293,-500.0,0.00050136,120]
[354870807,1740763552322,-535.26,0.00050136,120]
[354870808,1740763552351,-555.6,0.00050136,120]
[354870809,1740763552382,-4600.73,0.00050136,120]
[354870810,1740763552411,-11109.96,0.00050136,120]
[354870811,1740763552570,-5240.82,0.00050136,120]
[354870812,1740763552601,-500.0,0.00050136,120]
[354870813,1740763552633,-500.0,0.00050136,120]
[354870814,1740763552664,-882.26,0.00050136,120]
[354870815,1740763552694,-517.18786742,0.0005041,120]
[354870816,1740763552724,-429.68821317,0.0005041,120]
[354870817,1740763552752,-250.51698514,0.0005041,120]
[354870818,1740763552781,-500.0,0.0005041,120]
[354870819,1740763552811,-500.0,0.0005041,120]
[354870820,1740763552842,-500.0,0.0005041,120]
[354870821,1740763552874,-2517.67,0.0005041,120]
[354870822,1740763552904,-506.50010738,0.0005041,120]
[354870823,1740763552934,-570.76,0.0005041,120]
[354870824,1740763552964,-500.0,0.0005041,120]
[354870825,1740763552993,-500.0,0.0005041,120]
[354870826,1740763553021,-500.0,0.0005041,120]
[354870827,1740763553050,-500.0,0.0005041,120]
[354870828,1740763553079,-504.50003411,0.0005041,120]
[354870829,1740763553108,-515.78776027,0.0005041,120]
[354870830,1740763553139,-777.18,0.0005041,120]
[354870831,1740763553170,-500.0,0.0005041,120]
[354870832,1740763553201,-500.0,0.0005041,120]
[354870833,1740763553232,-500.0,0.0005041,120]
[354870834,1740763553261,-500.0,0.0005041,120]
[354870835,1740763553294,-918.28,0.0005041,120]
[354870836,1740763553324,-500.0,0.0005041,120]
[354870837,1740763553354,-1189.99,0.0005041,120]
[354870838,1740763553389,-500.0,0.0005041,120]
[354870839,1740763553420,-500.0,0.0005041,120]
[354870840,1740763553452,-500.0,0.0005041,120]
[354870841,1740763553484,-500.0,0.0005041,120]
[354870842,1740763553514,-500.0,0.0005041,120]
[354870843,1740763553544,-443.44008963,0.0005041,120]
[354870844,1740763553574,-500.0,0.0005041,120]
[354870845,1740763553604,-409.98015161,0.0005041,120]
[354870846,1740763553636,-500.0,0.0005041,120]
[354870847,1740763553671,-500.0,0.0005041,120]
[354870848,1740763553700,-500.0,0.0005041,120]
[354870849,1740763553728,-500.0,0.0005041,120]
[354870850,1740763553757,-500.0,0.0005041,120]
[354870851,1740763553784,-500.0,0.0005041,120]
[354870852,1740763553814,-500.0,0.0005041,120]
[354870853,1740763553842,-500.0,0.0005041,120]
[354870854,1740763553870,-500.0,0.0005041,120]
[354870855,1740763553898,-490.79394895,0.0005041,120]
[354870856,1740763553928,-656.3,0.0005041,120]
[354870857,1740763553957,-500.0,0.0005041,120]
[354870858,1740763553985,-2069.18,0.0005041,120]
[354870859,1740763554013,-500.0,0.0005041,120]
[354870860,1740763554041,-500.0,0.0005041,120]
[354870861,1740763554070,-500.0,0.0005041,120]
[354870862,1740763554098,-500.0,0.0005041,120]
[354870863,1740763554126,-500.0,0.0005041,120]
[354870864,1740763554153,-1148.56,0.0005041,120]
[354870865,1740763554181,-500.0,0.0005041,120]
[354870866,1740763554208,-500.0,0.0005041,120]
[354870867,1740763554238,-500.0,0.0005041,120]
[354870868,1740763554266,-2506.28,0.0005041,120]
[354870869,1740763554297,-500.0,0.0005041,120]
[354870870,1740763554325,-502.49529427,0.0005041,120]
[354870871,1740763554356,-500.0,0.0005041,120]
[354870872,1740763554386,-500.0,0.0005041,120]
[354870873,1740763554418,-500.0,0.0005041,120]
[354870874,1740763554448,-500.0,0.0005041,120]
[354870875,1740763554476,-500.0,0.0005041,120]
[354870876,1740763554505,-506.44595576,0.0005041,120]
[354870877,1740763554534,-574.5,0.0005041,120]
[354870878,1740763554564,-500.0,0.0005041,120]
[354870879,1740763554593,-503.29641154,0.0005041,120]
[354870880,1740763554624,-506.00693528,0.0005041,120]
[354870881,1740763554653,-500.0,0.0005041,120]
[354870882,1740763554682,-500.0,0.0005041,120]
[354870883,1740763554711,-500.0,0.0005041,120]
[354870884,1740763554741,-500.0,0.0005041,120]
[354870885,1740763554769,-666.25,0.0005041,120]
[354870886,1740763554798,-500.0,0.0005041,120]
[354870887,1740763554827,-500.0,0.0005041,120]
[354870888,1740763554855,-500.0,0.0005041,120]
[354870889,1740763554885,-500.0,0.0005041,120]
[354870890,1740763554914,-500.0,0.0005041,120]
[354870891,1740763554942,-500.0,0.0005041,120]
[354870892,1740763555113,-500.0,0.0005041,120]
[354870893,1740763555147,-500.0,0.0005041,120]
[354870894,1740763555176,-500.0,0.0005041,120]
[354870895,1740763555206,-1569.49,0.0005041,120]
[354870896,1740763555235,-500.0,0.0005041,120]
[354870897,1740763555264,-1233.89,0.0005041,120]
[354870898,1740763555296,-500.0,0.0005041,120]
[354870899,1740763555328,-500.0,0.0005041,120]
[354870900,1740763555357,-500.0,0.0005041,120]
[354870901,1740763555390,-500.0,0.0005041,120]
[354870902,1740763555422,-500.0,0.0005041,120]
[354870903,1740763555453,-500.0,0.0005041,120]
[354870904,1740763555483,-500.0,0.0005041,120]
[354870905,1740763555514,-1344.52,0.0005041,120]
[354870906,1740763555544,-1065.91,0.0005041,120]
[354870907,1740763555573,-500.0,0.0005041,120]
[354870908,1740763555603,-500.0,0.0005041,120]
[354870909,1740763555633,-500.0,0.0005041,120]
[354870910,1740763555663,-505.58233818,0.0005041,120]
[354870911,1740763555693,-500.0,0.0005041,120]
[354870912,1740763555723,-1671.97,0.0005041,120]
[354870913,1740763555753,-500.0,0.0005041,120]
[354870914,1740763555782,-500.0,0.0005041,120]
[354870915,1740763555811,-500.0,0.0005041,120]
[354870916,1740763555841,-841.24,0.0005041,120]
[354870917,1740763555872,-500.0,0.0005041,120]
[354870918,1740763555901,-500.0,0.0005041,120]
[354870919,1740763555931,-500.0,0.0005041,120]
[354870920,1740763555961,-2205.86,0.0005041,120]
[354870921,1740763555993,-500.0,0.0005041,120]
[354870922,1740763556022,-500.0,0.0005041,120]
[354870923,1740763556051,-926.05,0.0005041,120]
[354870924,1740763556079,-1146.34,0.0005041,120]
[354870925,1740763556109,-500.0,0.0005041,120]
[354870926,1740763556139,-2488.23,0.0005041,120]
[354870927,1740763556169,-500.0,0.0005041,120]
[354870928,1740763556198,-500.0,0.0005041,120]
[354870929,1740763556227,-500.0,0.0005041,120]
[354870930,1740763556257,-1011.27,0.0005041,120]
[354870931,1740763556287,-500.0,0.0005041,120]
[354870932,1740763556317,-500.0,0.0005041,120]
[354870933,1740763556347,-500.0,0.0005041,120]
[354870934,1740763556378,-232.62232371,0.0005041,120]
[354870935,1740763556406,-593.09,0.0005041,120]